[Event "German-ch Women 2024"]
[Site "Ostfildern"]
[Date "2024.08.19"]
[Round "1.1"]
[White "Kostak, Tetyana"]
[Black "Just, Anita"]
[Result "1-0"]
[ECO "C00"]
[WhiteElo "2094"]
[BlackElo "1871"]
[Annotator "NA RC"]
[PlyCount "127"]
[EventDate "2024.08.16"]
[EventType "tourn"]
[EventCountry "GER"]
[SourceTitle "playchess.com"]
[Source "ChessBase"]
[SourceQuality "1"]
[TimeControl "40/5400+30:1800+30"]

1. e4 {[%emt 0:00:13]} e6 {[%emt 0:00:06]} 2. d3 {[%emt 0:00:38]} d5 {[%emt 0:00:11]} 3. Nd2 {[%emt 0:00:11]} b6 {[%emt 0:00:24]} 4. Ngf3 {[%emt 0:04:47]} Nf6 {[%emt 0:00:30]} 5. e5 {[%emt 0:01:02]} Nfd7 {[%emt 0:00:17]} 6. d4 {[%emt 0:00:20]} c5 {[%emt 0:00:52]} 7. c3 {[%emt 0:00:12]} Nc6 {[%emt 0:03:13]} 8. a3 {[%emt 0:06:32]} Be7 {[%emt 0:06:10]} 9. Bb5 {[%emt 0:06:14]} Bb7 {[%emt 0:02:19]} 10. O-O {[%emt 0:01:10]} Qc7 {[%emt 0:01:36]} 11. Re1 {[%emt 0:03:34]} O-O-O {[%emt 0:06:49]} 12. b4 $14 {[%emt 0:05:35]} c4 {[%emt 0:11:31]} 13. Ba4 {[%emt 0:00:16]} g5 {[%emt 0:04:40]} 14. Nf1 {[%emt 0:06:31]} h6 {[%emt 0:01:33]} 15. h3 {[%emt 0:01:35]} Rdg8 {[%emt 0:01:42]} 16. N3h2 {[%emt 0:05:51]} h5 {[%emt 0:05:01]} 17. Ng3 {[%emt 0:01:18]} h4 {[%emt 0:03:11]} 18. Ngf1 {[%emt 0:00:40]} Nd8 {[%emt 0:02:18]} 19. Bxd7+ {[%emt 0:03:13]} Qxd7 {[%emt 0:00:51]} 20. Ng4 {[%emt 0:00:09]} Bc6 {[%emt 0:07:50]} 21. a4 {[%emt 0:00:31]} b5 {[%emt 0:01:45]} 22. axb5 {[%emt 0:01:43]} Bxb5 {[%emt 0:00:06]} 23. Nfh2 {[%emt 0:02:18]} Rg6 {[%emt 0:03:57]} 24. Qc2 {[%emt 0:01:37]} Rhg8 {[%emt 0:02:06]} 25. Bd2 {[%emt 0:00:37]} Nc6 {[%emt 0:01:51]} 26. Qd1 {[%emt 0:04:31]} Kb7 {[%emt 0:05:18]} 27. Ra2 {[%emt 0:03:32]} Qc7 {[%emt 0:05:43]} 28. Qf3 {[%emt 0:00:49]} Rf8 {[%emt 0:01:07]} 29. Rea1 {[%emt 0:09:43]} a6 {[%emt 0:04:45]} 30. Re1 {[%emt 0:04:40]} Qd8 {[%emt 0:03:50]} 31. Qd1 {[%emt 0:00:57]} Qc7 {[%emt 0:01:46]} 32. Ne3 {[%emt 0:04:12]} Qd8 {[%emt 0:05:03]} 33. Nhg4 {[%emt 0:00:40]} Qc7 {[%emt 0:00:26]} 34. Nc2 {[%emt 0:01:31]} Qd8 {[%emt 0:04:19]} 35. Na3 {[%emt 0:00:18]} Qb6 {[%emt 0:00:13]} 36. Nxb5 {[%emt 0:00:57]} axb5 {[%emt 0:00:06]} 37. Qf3 {[%emt 0:02:58]} Qc7 {[%emt 0:00:33]} 38. Rea1 {[%emt 0:01:13]} Rgg8 {[%emt 0:01:22]} 39. Be3 {[%emt 0:01:26]} Qd7 {[%emt 0:01:34]} 40. Ra6 {[%emt 0:03:25]} Qc7 {[%emt 0:01:15]} 41. Qe2 {[%emt 0:30:31]} Ra8 {[%emt 0:11:20]} 42. Qa2 {[%emt 0:00:00]} Qb8 {[%emt 0:00:26]} 43. Nh6 {[%emt 0:00:00]} Rf8 {[%emt 0:00:38]} 44. Nxf7 {[%emt 0:00:00]} Rxa6 {[%emt 0:08:40]} 45. Qxa6+ {[%emt 0:00:00]} Kc7 {[%emt 0:00:04]} 46. Nxg5 {[%emt 0:00:00]} Rg8 {[%emt 0:03:27]} 47. Nxe6+ {[%emt 0:00:00]} Kd7 {[%emt 0:00:12]} 48. Nf4 {[%emt 0:00:00]} Qc8 {[%emt 0:04:24]} 49. Qxc8+ {[%emt 0:00:00]} Rxc8 {[%emt 0:00:07]} 50. Nxd5 {[%emt 0:00:00]} Ke6 {[%emt 0:00:22]} 51. Nb6 {[%emt 0:00:00]} Rd8 {[%emt 0:01:44]} 52. d5+ {[%emt 0:00:00]} Rxd5 {[%emt 0:00:08]} 53. Nxd5 {[%emt 0:00:00]} Kxd5 {[%emt 0:00:04]} 54. f4 {[%emt 0:00:00]} Ke4 {[%emt 0:00:20]} 55. Kf2 {[%emt 0:00:00]} Kd3 {[%emt 0:01:51]} 56. Ra6 {[%emt 0:00:00]} Nxe5 {[%emt 0:03:02]} 57. fxe5 {[%emt 0:00:00]} Kxc3 {[%emt 0:00:06]} 58. Ra7 {[%emt 0:00:00]} Bxb4 {[%emt 0:00:43]} 59. Rb7 {[%emt 0:00:00]} Kd3 {[%emt 0:00:42]} 60. Rxb5 {[%emt 0:00:00]} Be7 {[%emt 0:00:18]} 61. Rb7 {[%emt 0:00:00]} Ba3 {[%emt 0:01:02]} 62. Rc7 {[%emt 0:00:04]} c3 {[%emt 0:00:32]} 63. e6 {[%emt 0:00:38]} Bd6 {[%emt 0:01:25]} 64. Rd7 {[%emt 0:23:38]} 1-0

[Event "German-ch Women 2024"]
[Site "Ostfildern"]
[Date "2024.08.19"]
[Round "1.2"]
[White "Wartenberg, Alissa"]
[Black "Wagenschuetz, Evelyn"]
[Result "0-1"]
[ECO "B90"]
[WhiteElo "1858"]
[BlackElo "2070"]
[Annotator "NA RC"]
[PlyCount "60"]
[EventDate "2024.08.16"]
[EventType "tourn"]
[EventCountry "GER"]
[SourceTitle "playchess.com"]
[Source "ChessBase"]
[SourceQuality "1"]
[TimeControl "40/5400+30:1800+30"]

1. e4 {[%emt 0:00:05]} c5 {[%emt 0:00:09]} 2. Nf3 {[%emt 0:00:03]} d6 {[%emt 0:00:12]} 3. d4 {[%emt 0:00:13]} cxd4 {[%emt 0:00:07]} 4. Nxd4 {[%emt 0:00:10]} Nf6 {[%emt 0:00:09]} 5. Nc3 {[%emt 0:00:29]} a6 {[%emt 0:00:05]} 6. Bd3 {[%emt 0:00:06]} e5 {[%emt 0:01:43]} 7. Nde2 {[%emt 0:00:05]} Nc6 {[%emt 0:02:53]} 8. O-O {[%emt 0:02:21]} Be7 {[%emt 0:01:14]} 9. Ng3 {[%emt 0:04:22]} h5 {[%emt 0:00:25]} 10. Nd5 {[%emt 0:10:33]} h4 {[%emt 0:02:06]} 11. Ne2 {[%emt 0:04:02]} Nxd5 {[%emt 0:06:34]} 12. exd5 {[%emt 0:00:06]} Nb4 {[%emt 0:01:36]} 13. c4 {[%emt 0:07:32]} Nxd3 {[%emt 0:00:39]} 14. Qxd3 {[%emt 0:00:07]} g6 $11 {[%emt 0:02:23]} 15. b4 {[%emt 0:11:40]} Bf5 {[%emt 0:06:16]} 16. Qc3 {[%emt 0:09:28]} Rc8 {[%emt 0:03:03]} 17. Be3 {[%emt 0:04:39]} h3 {[%emt 0:07:12]} 18. g3 {[%emt 0:01:57]} Be4 {[%emt 0:00:39]} 19. Rfd1 {[%emt 0:02:46]} Qd7 {[%emt 0:02:46]} 20. Bb6 {[%emt 0:20:05]} Qg4 {[%emt 0:03:08]} 21. Re1 {[%emt 0:01:13]} Bxd5 {[%emt 0:03:41]} 22. Nf4 {[%emt 0:06:04]} Rxc4 {[%emt 0:02:49]} 23. Qd3 {[%emt 0:01:32]} Rxf4 {[%emt 0:06:41]} 24. Qxd5 {[%emt 0:00:17]} Rxb4 {[%emt 0:05:07]} 25. f3 {[%emt 0:09:46]} Qd7 {[%emt 0:00:37]} 26. Ba5 {[%emt 0:00:40]} Qb5 {[%emt 0:01:28]} 27. Qxb5+ {[%emt 0:01:22]} Rxb5 {[%emt 0:00:07]} 28. Bc3 {[%emt 0:00:19]} Rc5 {[%emt 0:00:17]} 29. Rac1 {[%emt 0:00:25]} Kd7 {[%emt 0:00:33]} 30. f4 {[%emt 0:00:14]} Rhc8 {[%emt 0:00:14]} 0-1

[Event "German-ch Women 2024"]
[Site "Ostfildern"]
[Date "2024.08.19"]
[Round "1.3"]
[White "Miljkovic, Jovana"]
[Black "Moeller, Hannah"]
[Result "1-0"]
[ECO "A35"]
[WhiteElo "2021"]
[BlackElo "1845"]
[Annotator "NA RC"]
[PlyCount "53"]
[EventDate "2024.08.16"]
[EventType "tourn"]
[EventCountry "GER"]
[SourceTitle "playchess.com"]
[Source "ChessBase"]
[SourceQuality "1"]
[TimeControl "40/5400+30:1800+30"]

1. Nf3 {[%emt 0:00:03]} Nf6 {[%emt 0:00:11]} 2. c4 {[%emt 0:00:14]} c5 {[%emt 0:00:04]} 3. Nc3 {[%emt 0:00:16]} Nc6 {[%emt 0:00:21]} 4. e3 {[%emt 0:00:07]} g6 {[%emt 0:00:16]} 5. d4 {[%emt 0:00:12]} cxd4 {[%emt 0:00:07]} 6. exd4 {[%emt 0:00:15]} d5 {[%emt 0:00:12]} 7. cxd5 {[%emt 0:04:31]} Nxd5 {[%emt 0:00:29]} 8. Bb5 {[%emt 0:08:23]} a6 {[%emt 0:08:36]} 9. Bxc6+ {[%emt 0:07:30]} bxc6 {[%emt 0:00:23]} 10. Ne5 {[%emt 0:00:55]} Nxc3 {[%emt 0:02:30]} 11. bxc3 {[%emt 0:03:52]} Qd5 {[%emt 0:01:08]} 12. O-O {[%emt 0:01:27]} Bg7 {[%emt 0:02:18]} 13. c4 {[%emt 0:04:51]} Qe6 {[%emt 0:01:00]} 14. Re1 $16 {[%emt 0:07:06]} O-O {[%emt 0:06:01]} 15. Ba3 {[%emt 0:05:06]} Re8 {[%emt 0:06:25]} 16. Qa4 {[%emt 0:04:42]} Bb7 {[%emt 0:01:34]} 17. Rab1 {[%emt 0:01:34]} Qc8 {[%emt 0:02:40]} 18. Qb3 {[%emt 0:10:10]} Rb8 {[%emt 0:01:11]} 19. Bc5 {[%emt 0:01:05]} Ba8 {[%emt 0:01:14]} 20. Qxb8 {[%emt 0:02:48]} Qxb8 {[%emt 0:02:12]} 21. Rxb8 {[%emt 0:00:05]} Rxb8 {[%emt 0:00:05]} 22. Bxe7 {[%emt 0:00:20]} Rb2 {[%emt 0:01:23]} 23. a3 {[%emt 0:04:20]} Bf8 {[%emt 0:01:51]} 24. Bxf8 {[%emt 0:02:39]} Kxf8 {[%emt 0:00:06]} 25. h3 {[%emt 0:01:05]} Rd2 {[%emt 0:01:43]} 26. Nd7+ {[%emt 0:01:38]} Kg7 {[%emt 0:00:06]} 27. Nb6 {[%emt 0:00:32]} 1-0

[Event "German-ch Women 2024"]
[Site "Ostfildern"]
[Date "2024.08.19"]
[Round "1.4"]
[White "Walker, Julia"]
[Black "Staerk, Elisa"]
[Result "1-0"]
[ECO "B22"]
[WhiteElo "1836"]
[BlackElo "2002"]
[Annotator "NA RC"]
[PlyCount "69"]
[EventDate "2024.08.16"]
[EventType "tourn"]
[EventCountry "GER"]
[SourceTitle "playchess.com"]
[Source "ChessBase"]
[SourceQuality "1"]
[TimeControl "40/5400+30:1800+30"]

1. e4 {[%emt 0:00:03]} c5 {[%emt 0:00:03]} 2. c3 {[%emt 0:00:05]} Nf6 {[%emt 0:00:04]} 3. e5 {[%emt 0:00:07]} Nd5 {[%emt 0:00:05]} 4. d4 {[%emt 0:00:06]} cxd4 {[%emt 0:00:05]} 5. Nf3 {[%emt 0:00:05]} e6 {[%emt 0:00:06]} 6. cxd4 {[%emt 0:00:18]} d6 {[%emt 0:00:07]} 7. Bc4 {[%emt 0:00:21]} Be7 {[%emt 0:00:36]} 8. Qe2 {[%emt 0:00:40]} b6 {[%emt 0:01:21]} 9. O-O {[%emt 0:00:39]} O-O {[%emt 0:00:34]} 10. Rd1 {[%emt 0:00:22]} Bb7 {[%emt 0:05:07]} 11. Bxd5 {[%emt 0:02:43]} Bxd5 {[%emt 0:02:05]} 12. Nc3 {[%emt 0:00:25]} Bxf3 {[%emt 0:01:43]} 13. Qxf3 {[%emt 0:00:06]} d5 {[%emt 0:00:31]} 14. Ne2 {[%emt 0:09:56]} Nc6 {[%emt 0:03:10]} 15. Nf4 {[%emt 0:12:32]} Qd7 $14 {[%emt 0:07:22]} 16. Qg4 {[%emt 0:11:46]} Kh8 {[%emt 0:10:01]} 17. Rd3 {[%emt 0:16:22]} g6 {[%emt 0:23:03]} 18. h4 {[%emt 0:16:44]} Rg8 {[%emt 0:10:09]} 19. Nh3 {[%emt 0:05:42]} f5 {[%emt 0:08:01]} 20. exf6 {[%emt 0:08:44]} Bxf6 {[%emt 0:00:13]} 21. Bg5 {[%emt 0:00:46]} Bg7 {[%emt 0:05:11]} 22. Re1 {[%emt 0:02:38]} Rae8 {[%emt 0:00:39]} 23. a3 {[%emt 0:05:39]} h5 {[%emt 0:02:39]} 24. Qd1 {[%emt 0:03:02]} e5 {[%emt 0:03:13]} 25. dxe5 {[%emt 0:00:53]} Nxe5 {[%emt 0:00:30]} 26. Rde3 {[%emt 0:02:02]} Ng4 {[%emt 0:06:12]} 27. Re7 {[%emt 0:00:22]} Rxe7 {[%emt 0:01:45]} 28. Rxe7 {[%emt 0:00:05]} Qd6 {[%emt 0:01:20]} 29. Nf4 {[%emt 0:00:49]} Be5 {[%emt 0:01:52]} 30. Re6 {[%emt 0:00:34]} Qc5 {[%emt 0:01:13]} 31. Qe1 {[%emt 0:00:40]} Nxf2 {[%emt 0:02:36]} 32. Qxe5+ {[%emt 0:00:15]} Rg7 {[%emt 0:00:36]} 33. Nxg6+ {[%emt 0:00:27]} Kh7 {[%emt 0:00:36]} 34. Be3 {[%emt 0:00:23]} Ng4 {[%emt 0:01:32]} 35. Qxh5+ {[%emt 0:00:08]} 1-0

[Event "German-ch Women 2024"]
[Site "Ostfildern"]
[Date "2024.08.19"]
[Round "1.5"]
[White "Braun, Kristin"]
[Black "Noll, Sonja"]
[Result "1-0"]
[ECO "B03"]
[WhiteElo "2001"]
[BlackElo "1810"]
[Annotator "NA RC"]
[PlyCount "47"]
[EventDate "2024.08.16"]
[EventType "tourn"]
[EventCountry "GER"]
[SourceTitle "playchess.com"]
[Source "ChessBase"]
[SourceQuality "1"]
[TimeControl "40/5400+30:1800+30"]

1. e4 {[%emt 0:00:02]} Nf6 {[%emt 0:00:05]} 2. e5 {[%emt 0:00:56]} Nd5 {[%emt 0:00:07]} 3. c4 {[%emt 0:00:11]} Nb6 {[%emt 0:00:06]} 4. d4 {[%emt 0:00:23]} d6 {[%emt 0:00:06]} 5. f4 {[%emt 0:01:52]} dxe5 {[%emt 0:00:10]} 6. fxe5 {[%emt 0:00:10]} Nc6 {[%emt 0:00:20]} 7. Be3 {[%emt 0:01:38]} Bf5 {[%emt 0:00:20]} 8. Nc3 {[%emt 0:01:07]} e6 {[%emt 0:05:09]} 9. Nf3 {[%emt 0:00:53]} Nb4 {[%emt 0:03:33]} 10. Rc1 {[%emt 0:01:26]} c5 {[%emt 0:01:43]} 11. a3 {[%emt 0:08:26]} Na6 {[%emt 0:12:19]} 12. d5 {[%emt 0:06:52]} Bg4 {[%emt 1:12:32]} 13. d6 $18 {[%emt 0:16:46]} Nd7 {[%emt 0:00:00]} 14. Be2 {[%emt 0:20:12]} Bxf3 {[%emt 0:00:00]} 15. Bxf3 {[%emt 0:00:17]} Qh4+ {[%emt 0:00:00]} 16. g3 {[%emt 0:01:39]} Qh3 {[%emt 0:00:00]} 17. Bxb7 {[%emt 0:05:36]} Rb8 {[%emt 0:00:00]} 18. Bxa6 {[%emt 0:01:41]} Qg2 {[%emt 0:00:00]} 19. Rf1 {[%emt 0:07:26]} Qxh2 {[%emt 0:00:00]} 20. Ne4 {[%emt 0:06:37]} Qxb2 {[%emt 0:00:00]} 21. Bb5 {[%emt 0:04:30]} Qxe5 {[%emt 0:00:00]} 22. Bxd7+ {[%emt 0:00:28]} Kxd7 {[%emt 0:00:00]} 23. Qa4+ {[%emt 0:00:08]} Kd8 {[%emt 0:00:00]} 24. Rxf7 {[%emt 0:00:11]} 1-0

[Event "German-ch Women 2024"]
[Site "Ostfildern"]
[Date "2024.08.19"]
[Round "1.6"]
[White "Koeberl, Christiane"]
[Black "Bluebaum, Johanna"]
[Result "0-1"]
[ECO "D03"]
[WhiteElo "1745"]
[BlackElo "1994"]
[Annotator "NA RC"]
[PlyCount "69"]
[EventDate "2024.08.16"]
[EventType "tourn"]
[EventCountry "GER"]
[SourceTitle "playchess.com"]
[Source "ChessBase"]
[SourceQuality "1"]
[TimeControl "40/5400+30:1800+30"]

1. d4 {[%emt 0:00:22]} Nf6 {[%emt 0:00:10]} 2. Nf3 {[%emt 0:00:06]} e6 {[%emt 0:00:14]} 3. Bg5 {[%emt 0:00:29]} d5 {[%emt 0:00:22]} 4. e3 {[%emt 0:00:06]} c5 {[%emt 0:00:23]} 5. c3 {[%emt 0:01:24]} Nc6 {[%emt 0:00:21]} 6. Bd3 {[%emt 0:00:40]} h6 {[%emt 0:04:39]} 7. Bh4 {[%emt 0:02:17]} Be7 {[%emt 0:01:45]} 8. Nbd2 {[%emt 0:00:36]} O-O {[%emt 0:02:55]} 9. Rc1 {[%emt 0:00:50] D03: 1 d4 d5 2 Nf3 Nf6 3 Bg5, including Torre Attack with early ...d5.} c4 {[%emt 0:00:24]} 10. Bb1 {[%emt 0:00:05]} g6 {[%emt 0:01:29]} 11. h3 {[%emt 0:01:42]} b5 {[%emt 0:02:52]} 12. O-O {[%emt 0:01:15]} Nh5 {[%emt 0:02:43]} 13. Bxe7 {[%emt 0:00:54]} Qxe7 {[%emt 0:00:08]} 14. e4 {[%emt 0:00:22]} Nf4 {[%emt 0:06:32]} 15. Re1 {[%emt 0:01:46]} Qf6 {[%emt 0:03:02]} 16. e5 {[%emt 0:03:15]} Qe7 {[%emt 0:02:30]} 17. Nf1 {[%emt 0:00:49]} b4 {[%emt 0:05:48]} 18. Qd2 {[%emt 0:00:52]} g5 {[%emt 0:00:59]} 19. Ne3 $16 {[%emt 0:02:25]} h5 {[%emt 0:09:32]} 20. Nf1 {[%emt 0:03:15]} bxc3 {[%emt 0:09:34]} 21. Rxc3 {[%emt 0:03:15]} Nb4 {[%emt 0:04:50]} 22. Nxg5 {[%emt 0:10:47]} Nbd3 {[%emt 0:01:46]} 23. Re3 {[%emt 0:02:27]} h4 {[%emt 0:04:19]} 24. Nf3 {[%emt 0:02:22]} f5 {[%emt 0:07:57]} 25. Bxd3 {[%emt 0:08:56]} cxd3 {[%emt 0:01:26]} 26. Rexd3 {[%emt 0:01:20]} Nxd3 {[%emt 0:01:20]} 27. Qxd3 {[%emt 0:00:26]} Rf7 {[%emt 0:02:24]} 28. Qc2 {[%emt 0:01:56]} Ba6 {[%emt 0:02:19]} 29. N1d2 {[%emt 0:00:02]} Rg7 {[%emt 0:02:01]} 30. Nb3 {[%emt 0:01:01]} Kh7 {[%emt 0:01:24]} 31. Nc5 {[%emt 0:00:22]} Bc4 {[%emt 0:01:39]} 32. b3 {[%emt 0:00:39]} Rxg2+ {[%emt 0:06:04]} 33. Kh1 {[%emt 0:07:21]} Rag8 {[%emt 0:02:43]} 34. bxc4 {[%emt 0:06:48]} Qg7 {[%emt 0:01:28]} 35. Qd1 {[%emt 0:03:43]} 0-1

[Event "German-ch Women 2024"]
[Site "Ostfildern"]
[Date "2024.08.19"]
[Round "1.7"]
[White "Novikova, Margarita"]
[Black "Albayrak, Aylin"]
[Result "1-0"]
[ECO "A45"]
[WhiteElo "1991"]
[BlackElo "1741"]
[Annotator "NA RC"]
[PlyCount "77"]
[EventDate "2024.08.16"]
[EventType "tourn"]
[EventCountry "GER"]
[SourceTitle "playchess.com"]
[Source "ChessBase"]
[SourceQuality "1"]
[TimeControl "40/5400+30:1800+30"]

1. d4 {[%emt 0:00:13]} Nf6 {[%emt 0:00:17]} 2. Bf4 {[%emt 0:00:15]} g6 {[%emt 0:00:33]} 3. Nd2 {[%emt 0:01:05]} Bg7 {[%emt 0:00:50]} 4. e4 {[%emt 0:01:53]} d6 {[%emt 0:00:54]} 5. Bd3 {[%emt 0:04:40]} O-O {[%emt 0:02:06]} 6. h3 {[%emt 0:01:48]} Nbd7 {[%emt 0:01:43]} 7. Ngf3 {[%emt 0:00:16]} c5 {[%emt 0:01:53]} 8. c3 {[%emt 0:00:40]} a6 {[%emt 0:04:48]} 9. a4 {[%emt 0:01:56]} b6 {[%emt 0:03:39]} 10. O-O {[%emt 0:03:14]} Bb7 {[%emt 0:02:54]} 11. Qe2 {[%emt 0:03:53]} Re8 {[%emt 0:03:44]} 12. e5 {[%emt 0:02:53]} dxe5 {[%emt 0:04:21]} 13. dxe5 {[%emt 0:00:57]} Nd5 {[%emt 0:00:52]} 14. Bg3 $11 {[%emt 0:02:03]} Nf8 {[%emt 0:05:38]} 15. Ng5 {[%emt 0:09:39]} h6 {[%emt 0:01:24]} 16. Nge4 {[%emt 0:02:39]} f5 {[%emt 0:03:34]} 17. exf6 {[%emt 0:01:10]} exf6 {[%emt 0:00:51]} 18. Qd1 {[%emt 0:03:40]} Re6 {[%emt 0:12:05]} 19. Nc4 {[%emt 0:11:32]} f5 {[%emt 0:06:07]} 20. Ned6 {[%emt 0:05:00]} Bc6 {[%emt 0:01:03]} 21. Be2 {[%emt 0:06:54]} f4 {[%emt 0:05:41]} 22. Bf3 {[%emt 0:01:32]} Nxc3 {[%emt 0:13:59]} 23. bxc3 {[%emt 0:03:46]} Bxf3 {[%emt 0:00:47]} 24. Qxf3 {[%emt 0:01:31]} fxg3 {[%emt 0:01:27]} 25. fxg3 {[%emt 0:09:42]} Ra7 {[%emt 0:05:30]} 26. Rad1 {[%emt 0:03:17]} Rd7 {[%emt 0:05:31]} 27. Qd5 {[%emt 0:01:34]} Qe7 {[%emt 0:03:19]} 28. Nc8 {[%emt 0:03:45]} Qe8 {[%emt 0:03:35]} 29. N4d6 {[%emt 0:04:34]} Qd8 {[%emt 0:03:14]} 30. Rxf8+ {[%emt 0:00:41]} Kxf8 {[%emt 0:00:23]} 31. Qxe6 {[%emt 0:00:18]} Bxc3 {[%emt 0:00:41]} 32. Qxg6 {[%emt 0:03:09]} Bd4+ {[%emt 0:00:59]} 33. Kh2 {[%emt 0:00:12]} Rg7 {[%emt 0:01:02]} 34. Qxh6 {[%emt 0:01:45]} Kg8 {[%emt 0:00:14]} 35. Qe6+ {[%emt 0:00:26]} Kh7 {[%emt 0:00:24]} 36. Nf5 {[%emt 0:00:53]} Rg6 {[%emt 0:01:00]} 37. Qf7+ {[%emt 0:00:18]} Kh8 {[%emt 0:00:42]} 38. Qxg6 {[%emt 0:00:28]} Qxc8 {[%emt 0:00:35]} 39. Rxd4 {[%emt 0:05:49]} 1-0

[Event "German-ch Women 2024"]
[Site "Ostfildern"]
[Date "2024.08.19"]
[Round "1.8"]
[White "Foltin, Alica"]
[Black "Moutaqi, Sandra"]
[Result "1-0"]
[ECO "D35"]
[WhiteElo "1722"]
[BlackElo "1961"]
[Annotator "NA RC"]
[PlyCount "133"]
[EventDate "2024.08.16"]
[EventType "tourn"]
[EventCountry "GER"]
[SourceTitle "playchess.com"]
[Source "ChessBase"]
[SourceQuality "1"]
[TimeControl "40/5400+30:1800+30"]

1. d4 {[%emt 0:00:05]} d5 {[%emt 0:00:06]} 2. c4 {[%emt 0:00:05]} e6 {[%emt 0:00:06]} 3. Nc3 {[%emt 0:00:04]} Nf6 {[%emt 0:00:12]} 4. cxd5 {[%emt 0:00:05]} exd5 {[%emt 0:00:26]} 5. Bg5 {[%emt 0:00:05]} Be7 {[%emt 0:00:15]} 6. e3 {[%emt 0:00:10]} O-O {[%emt 0:00:40]} 7. Qc2 {[%emt 0:00:41]} h6 {[%emt 0:01:29]} 8. Bh4 {[%emt 0:01:52]} Be6 {[%emt 0:07:07]} 9. Bd3 {[%emt 0:00:22]} Nc6 {[%emt 0:02:11]} 10. a3 {[%emt 0:04:50]} a6 {[%emt 0:12:41]} 11. Nge2 {[%emt 0:01:27]} Rc8 {[%emt 0:03:41]} 12. O-O {[%emt 0:06:46]} Ng4 $16 {[%emt 0:10:26]} 13. Bxe7 {[%emt 0:03:29]} Nxe7 {[%emt 0:04:17]} 14. h3 {[%emt 0:06:26]} Nf6 {[%emt 0:00:16]} 15. b4 {[%emt 0:02:19]} Qd7 {[%emt 0:01:46]} 16. Nf4 {[%emt 0:05:31]} g5 {[%emt 0:02:01]} 17. Nxe6 {[%emt 0:03:15]} Qxe6 {[%emt 0:00:10]} 18. Na4 {[%emt 0:07:14]} b5 {[%emt 0:10:37]} 19. Nc5 {[%emt 0:01:52]} Qd6 {[%emt 0:00:31]} 20. a4 {[%emt 0:17:18]} Rb8 {[%emt 0:03:25]} 21. Qe2 {[%emt 0:02:34]} Rb6 {[%emt 0:07:52]} 22. f4 {[%emt 0:05:11]} Rfb8 {[%emt 0:06:43]} 23. axb5 {[%emt 0:05:34]} axb5 {[%emt 0:00:11]} 24. fxg5 {[%emt 0:06:52]} hxg5 {[%emt 0:00:11]} 25. Qf2 {[%emt 0:02:01]} Rf8 {[%emt 0:14:03]} 26. Ra5 {[%emt 0:03:50]} Nh5 {[%emt 0:04:06]} 27. Rxb5 {[%emt 0:07:00]} Rxb5 {[%emt 0:00:34]} 28. Bxb5 {[%emt 0:00:12]} Ng3 {[%emt 0:00:27]} 29. Rb1 {[%emt 0:00:45]} Rb8 {[%emt 0:01:06]} 30. Bd3 {[%emt 0:00:51]} Nc6 {[%emt 0:01:19]} 31. b5 {[%emt 0:01:25]} Na7 {[%emt 0:01:38]} 32. Qa2 {[%emt 0:01:31]} Nc8 {[%emt 0:01:06]} 33. Qa6 {[%emt 0:01:28]} Nb6 {[%emt 0:00:16]} 34. Na4 {[%emt 0:01:28]} Ra8 {[%emt 0:01:11]} 35. Nxb6 {[%emt 0:01:24]} Rxa6 {[%emt 0:00:07]} 36. bxa6 {[%emt 0:00:07]} cxb6 {[%emt 0:00:27]} 37. Ra1 {[%emt 0:00:45]} Qb8 {[%emt 0:00:58]} 38. a7 {[%emt 0:00:14]} Qa8 {[%emt 0:00:07]} 39. Bb5 {[%emt 0:00:20]} Kg7 {[%emt 0:01:09]} 40. Bc6 {[%emt 0:00:54]} Qxc6 {[%emt 0:00:12]} 41. a8=Q {[%emt 0:30:23]} Ne2+ {[%emt 0:31:08]} 42. Kf2 {[%emt 0:00:54]} Qc4 {[%emt 0:00:00]} 43. Qa2 {[%emt 0:00:00]} Nc3 {[%emt 0:00:00]} 44. Qxc4 {[%emt 0:00:00]} Ne4+ {[%emt 0:00:00]} 45. Kf3 {[%emt 0:00:00]} Nd2+ {[%emt 0:00:00]} 46. Ke2 {[%emt 0:00:00]} Nxc4 {[%emt 0:00:00]} 47. Rb1 {[%emt 0:00:00]} Kf6 {[%emt 0:00:00]} 48. Kd3 {[%emt 0:00:00]} Ke7 {[%emt 0:00:00]} 49. e4 {[%emt 0:00:00]} Nd6 {[%emt 0:00:00]} 50. exd5 {[%emt 0:00:00]} b5 {[%emt 0:00:00]} 51. Kc3 {[%emt 0:00:00]} Ne4+ {[%emt 0:00:00]} 52. Kd3 {[%emt 0:00:00]} Nd6 {[%emt 0:00:00]} 53. Ra1 {[%emt 0:00:00]} Nc4 {[%emt 0:00:00]} 54. Ra7+ {[%emt 0:00:00]} Kf6 {[%emt 0:00:11]} 55. Rb7 {[%emt 0:00:00]} Nd6 {[%emt 0:00:15]} 56. Rb6 {[%emt 0:00:00]} Ke7 {[%emt 0:00:04]} 57. Kc3 {[%emt 0:00:00]} Kd7 {[%emt 0:00:59]} 58. Kb4 {[%emt 0:00:00]} Kc7 {[%emt 0:00:10]} 59. Rc6+ {[%emt 0:00:00]} Kd7 {[%emt 0:00:08]} 60. Kc5 {[%emt 0:00:00]} Nf5 {[%emt 0:01:29]} 61. Rf6 {[%emt 0:00:00]} Ne3 {[%emt 0:01:25]} 62. Rxf7+ {[%emt 0:00:00]} Ke8 {[%emt 0:00:25]} 63. Rg7 {[%emt 0:00:00]} Nxg2 {[%emt 0:00:24]} 64. d6 {[%emt 0:00:00]} Nf4 {[%emt 0:00:27]} 65. d7+ {[%emt 0:00:00]} Kf8 {[%emt 0:02:25]} 66. d8=Q+ {[%emt 0:00:00]} Kxg7 {[%emt 0:00:05]} 67. Qxg5+ {[%emt 0:00:00]} 1-0